Cogmind - Beta 14 @@@ ROGUE MODE // 2024.10.20 @ 06:47:58 Player: ngplus Result: Self-destructed Performance ------------- Evolutions (1) 500 Regions Visited (3) 600 Robots Destroyed (22) 110 Value Destroyed (477) 477 Prototype IDs (0) 0 Alien Tech Used (0) 0 Bonus (0) 0 TOTAL SCORE: 1687 Bonus ------- None Cogmind --------- Core Integrity 21/400 Matter 246/300 Energy 125/125 System Corruption 0% Temperature Cool (0) Movement Treading (480) Ox4 Location -9/Materials Parts ------- > --- POWER (1) -------- Light Ion Engine > --- PROPULSION (4) --- Light Treads > --- UTILITY (2) ------ Huge Storage Unit Targeting Computer > --- WEAPON (2) ------- Heavy Assault Rifle Hammer > --- INVENTORY (25) --- Wheel Wheel Heat Sink Small Storage Unit Experimental Sensor Array Targeting Computer Medium Armor Plating Peak State ------------ > --- POWER ------------ Improved Ion Engine > --- PROPULSION ------- Light Treads Light Treads Light Treads Light Treads > --- UTILITY ---------- Huge Storage Unit Targeting Computer > --- WEAPON ----------- Light EM Pulse Cannon Light EM Pulse Cannon > --- INVENTORY -------- Light Ion Engine Light Treads Heat Sink Small Storage Unit Experimental Sensor Array Targeting Computer Medium Armor Plating Hammer [Rating: 13] Favorites ----------- Power Ion Engine Engine Ion Engine Propulsion Light Treads Treads Light Treads Leg Aluminum Leg Utility Targeting Computer Device Heat Sink Storage Small Storage Unit Processor Targeting Computer Weapon EM Pulse Gun Energy Gun EM Pulse Gun Energy Cannon Light EM Pulse Cannon Ballistic Gun Heavy Assault Rifle Impact Weapon Hammer Build | -11 -10 -10 -9 ------- Run | Yrd Mat Min Mat Slots Evolved 2 | . . . 2 Power . | . . . . Propulsion 2 | . . . 2 Utility . | . . . . Weapon . | . . . . Parts Attached 27 | 6 6 3 12 Power 5 | 1 . 1 3 Engine 5 | 1 . 1 3 Core . | . . . . Reactor . | . . . . Propulsion 9 | 2 2 2 3 Treads 7 | . 2 2 3 Leg 2 | 2 . . . Wheel . | . . . . Hover . | . . . . Flight . | . . . . Utility 6 | 1 4 . 1 Device 1 | . 1 . . Storage 4 | 1 2 . 1 Processor 1 | . 1 . . Hackware . | . . . . Protection . | . . . . Artifact . | . . . . Weapon 7 | 2 . . 5 Energy Gun 2 | 2 . . . Energy Cannon 2 | . . . 2 Ballistic Gun 1 | . . . 1 Ballistic Cannon . | . . . . Launcher . | . . . . Special Weapon . | . . . . Impact Weapon 2 | . . . 2 Slashing Weapon . | . . . . Piercing Weapon . | . . . . Special Melee Weapon . | . . . . Unidentified Prototypes . | . . . . Parts Lost 12 | . . 5 7 Power 3 | . . 2 1 Propulsion 5 | . . 1 4 Utility . | . . . . Weapon 4 | . . 2 2 Highest Loss Streak 7 | . . 3 7 To Critical Strikes . | . . . . Average Slot Usage (%) 85 | . 97 82 80 Engine 11 | . 14 10 9 Treads 25 | . 11 27 34 Leg 4 | . 16 . . Storage 12 | . 14 14 11 Processor 11 | . 7 14 11 Energy Gun 13 | . 28 15 . Energy Cannon 2 | . . . 8 Impact Weapon 1 | . . . 5 Peak Build Rating 13 | 6 7 8 13 Average Rating 7 | 4 6 6 9 On Entrance 4 | . 6 7 5 Naked Turns . | . . . . Heaviest Build 95 | 14 89 14 95 Greatest Support 80 | 20 40 40 80 Greatest Overweight (x) 27 | . 2 . 27 Average Overweight (x) . | . . . 1 Largest Inventory Capacity 25 | 8 25 8 25 Average Capacity 15 | 7 14 8 24 Most Carried 9 | 4 8 8 9 Average Carried 6 | . 4 7 6 Final Capacity 25 | 8 8 8 25 Final Carried 7 | 1 7 7 7 Class Distribution -------------------- 100% | Mutant Dominant Class ---------------- Mutant | -10/Materials Mutant | -10/Mines Mutant | -9/Materials Resources | -11 -10 -10 -9 ----------- Run | Yrd Mat Min Mat Matter Collected 410 | 240 40 50 80 Remotely . | . . . . Salvage Created 629 | . 294 . 335 Parts 39 | . 18 1 20 Haulers Intercepted 1 | . 1 . . Recyclers Shooed . | . . . . Parts Field Recycled . | . . . . Retrieved Matter . | . . . . Parts Self-Destructed . | . . . . Prevented . | . . . . Kills | -11 -10 -10 -9 ------- Run | Yrd Mat Min Mat Combat Hostiles Destroyed 19 | . 7 3 9 Melee 4 | . . 3 1 Guns 9 | . 7 . 2 Cannons 3 | . . . 3 AOE 1 | . . . 1 Classes Destroyed 6 | . 3 . 3 Worker 1 | . . . 1 Hauler 1 | . 1 . . Mechanic 1 | . . . 1 Swarmer 10 | . 3 3 4 Grunt 7 | . 4 . 3 Sentry 2 | . . . 2 Best Kill Streak 5 | . 5 2 3 Combat Bots Only 5 | . 5 2 3 Max Kills in Single Turn 1 | . 1 1 1 Gunslinging . | . . . . Exploded 1 | . . . 1 Melee 1 | . . 1 1 Uniques/NPCs Destroyed . | . . . . Combat | -11 -10 -10 -9 -------- Run | Yrd Mat Min Mat Hostile Shots Fired 301 | . 22 83 196 Missed 71 | . 5 24 42 Damage Taken 2182 | . 164 725 1293 Core 617 | . 55 183 379 Absorbed by Shields . | . . . . Core Remaining (%) 52 | 100 . 4 . Volleys Fired 36 | . 20 1 15 Largest 2 | . 2 2 2 Hottest 112 | . 80 80 112 Shots Fired 63 | . 40 2 21 Gun 50 | . 40 2 8 Cannon 13 | . . . 13 Launcher . | . . . . Special . | . . . . Kinetic 8 | . . . 8 Thermal . | . . . . Explosive . | . . . . Electromagnetic 55 | . 40 2 13 Robot Hit Streak 12 | . 11 12 7 Robot Miss Streak 2 | . 2 1 2 Penetration Max . | . . . . Secondary Targets 2 | . 2 . . Max Gunslinging Chain 1 | . 1 . . Shots Hit Robots 56 | . 28 1 27 Core Hits 29 | . 9 10 10 Critical Kills . | . . . . Critical Parts Destroyed 2 | . . . 2 Critical Strikes 2 | . . . 2 Smash 2 | . . . 2 Melee Attacks 19 | . . . 19 Impact 19 | . . . 19 Slashing . | . . . . Piercing . | . . . . Sneak Attacks 1 | . . . 1 Combat Hostiles . | . . . . Follow-up Attacks . | . . . . Damage Inflicted 1050 | . 350 53 647 Guns 454 | . 350 12 92 Cannons 206 | . . . 206 Explosions 45 | . . . 45 Melee 304 | . . . 304 Ramming 41 | . . 41 . Kinetic 92 | . . . 92 Thermal 45 | . . . 45 Explosive . | . . . . Electromagnetic 568 | . 350 12 206 Impact 304 | . . . 304 Slashing . | . . . . Piercing . | . . . . Highest Corruption . | . . . . Average Corruption . | . . . . Corruption Purged . | . . . . Corruption Blocked . | . . . . Overload Shots . | . . . . Overflow Damage 105 | . . . 105 Projectiles . | . . . . Explosions . | . . . . Melee 105 | . . . 105 Knockbacks . | . . . . Impact . | . . . . Kinetic . | . . . . Secondary . | . . . . Self-Inflicted Damage . | . . . . Shots . | . . . . Rammed 30 | . . 30 . Targets Rammed 32 | . . 32 . Kicked . | . . . . Crushed 2 | . . 2 . Highest Temperature 96 | . 72 18 96 Average Temperature 27 | . 23 12 33 Received Heat Transfer 114 | . 45 . 69 Siege Activations . | . . . . Robots Corrupted 4 | . 1 . 3 Combat Hostiles 2 | . . . 2 Parts Fried 6 | . 1 . 5 Impact Corruptions 7 | . . . 7 Robots Melted . | . . . . Combat Hostiles . | . . . . Parts Melted . | . . . . Heat Transferred 100 | . . . 100 Parts Sabotaged . | . . . . Parts Stolen . | . . . . Parts Stripped . | . . . . Power Chain Reactions 1 | . . . 1 Alert | -11 -10 -10 -9 ------- Run | Yrd Mat Min Mat Peak Influence 231 | . 231 50 137 Initial 19 | . . 12 19 Average 56 | . 122 17 49 Maximum Alert Level 1 | . 1 . . Low Security (%) 88 | 100 57 100 100 Level 1 11 | . 42 . . Level 2 . | . . . . Level 3 . | . . . . Level 4 . | . . . . Level 5 . | . . . . High Security . | . . . . Max Security . | . . . . Squads Dispatched 1 | . . . 1 Investigation . | . . . . Extermination . | . . . . Reinforcement 1 | . . . 1 Assault . | . . . . Garrison . | . . . . Intercept . | . . . . Searches Triggered . | . . . . Construction Impeded . | . . . . Haulers Reinforced . | . . . . Active Scanning Responses . | . . . . Cargo Convoy Interrupts . | . . . . Stealth | -11 -10 -10 -9 --------- Run | Yrd Mat Min Mat Distress Signals 3 | . . . 3 Communications Jammed . | . . . . Distress Signals . | . . . . Times Spotted 33 | . 9 4 20 Peak Tracking Total 10 | . 4 3 10 Tactical Retreats 2 | . 1 1 . Traps | -11 -10 -10 -9 ------- Run | Yrd Mat Min Mat Traps Triggered . | . . . . Indirectly . | . . . . Trap Hack Attempts . | . . . . Triggered . | . . . . Disarmed 4 | . 4 . . Reprogrammed . | . . . . Reused . | . . . . Traps Extracted . | . . . . Installed . | . . . . Triggered . | . . . . Machines | -11 -10 -10 -9 ---------- Run | Yrd Mat Min Mat Machines Disabled 2 | . 1 . 1 Max in Single Turn 1 | . 1 . 1 Machines Repaired . | . . . . Machines Dismantled . | . . . . Machines Sabotaged . | . . . . Overloaded Fab Kills . | . . . . Hacking | -11 -10 -10 -9 --------- Run | Yrd Mat Min Mat Machines Accessed 4 | . 2 . 2 Terminals 4 | . 2 . 2 Fabricators . | . . . . Repair Stations . | . . . . Recycling Units . | . . . . Scanalyzers . | . . . . Garrison Access . | . . . . Total Hacks 8 | . 6 . 2 Successful 3 | . 2 . 1 Failed 5 | . 4 . 1 Catastrophic . | . . . . Database Lockouts . | . . . . Manual 1 | . . . 1 Terminals 8 | . 6 . 2 Fabricators . | . . . . Repair Stations . | . . . . Recycling Units . | . . . . Scanalyzers . | . . . . Garrison Access . | . . . . Terminal Hacks 3 | . 2 . 1 Locate Traps 1 | . 1 . . Disarm Traps 1 | . 1 . . Surveillance Status 1 | . . . 1 Fabricator Hacks . | . . . . Repair Station Hacks . | . . . . Recycling Unit Hacks . | . . . . Scanalyzer . | . . . . Garrison Access Hacks . | . . . . Unauthorized Hacks . | . . . . Terminals . | . . . . Fabricators . | . . . . Repair Stations . | . . . . Recycling Units . | . . . . Scanalyzers . | . . . . Garrison Access . | . . . . Data Cores Recovered . | . . . . Used . | . . . . Hacking Detections 2 | . 2 . . Full Trace Events . | . . . . Feedback Events . | . . . . Feedback Blocked . | . . . . Robot Schematics Acquired . | . . . . Robots Built . | . . . . Authchips . | . . . . Time . | . . . . Total Robot Build Rating . | . . . . Part Schematics Acquired . | . . . . Parts Built . | . . . . Authchips . | . . . . Time . | . . . . Total Part Build Rating . | . . . . Parts Repaired . | . . . . Time . | . . . . Parts Recycled . | . . . . Recycled Matter . | . . . . Retrieved Matter . | . . . . Retrieved Components . | . . . . Parts Scanalyzed . | . . . . Part Schematics Acquired . | . . . . Parts Damaged . | . . . . Bothacking | -11 -10 -10 -9 ------------ Run | Yrd Mat Min Mat Used RIF Installer . | . . . . Robots Hacked . | . . . . Non-combat . | . . . . Combat . | . . . . Robot Hacks Applied . | . . . . Relay Couplers Released . | . . . . Fabnet Peak Effective % . | . . . . Robots Rewired . | . . . . Allies Hacked . | . . . . Hacks Repelled . | . . . . Allies | -11 -10 -10 -9 -------- Run | Yrd Mat Min Mat Total Allies . | . . . . Largest Group . | . . . . Highest-Rated Group . | . . . . Highest-Rated Ally . | . . . . Total Orders . | . . . . Ally Attacks . | . . . . Total Damage . | . . . . Kills . | . . . . Allies Corrupted . | . . . . Allies Melted . | . . . . Intel | -11 -10 -10 -9 ------- Run | Yrd Mat Min Mat Robot Analysis Total . | . . . . Derelict Logs Recovered . | . . . . Drone Launches . | . . . . Drone Recoveries . | . . . . Exploration | -11 -10 -10 -9 ------------- Run | Yrd Mat Min Mat Turns Passed 1847 | 82 514 622 629 Spaces Moved 807 | 49 237 352 169 Core 18 | 14 . . 4 Treads 585 | . 68 352 165 Legs 204 | 35 169 . . Wheels . | . . . . Hover . | . . . . Flight . | . . . . Fastest Speed 50 | 50 120 160 240 Average Speed 183 | 100 169 160 275 Slowest Speed 1400 | 120 320 160 1400 Overloaded Moves . | . . . . Propulsion Burnouts . | . . . . Robots Hopped . | . . . . Cave-ins Triggered . | . . . . Exploration Rate (%) 39 | 4 47 85 21 Regions Visited 3 Branch Regions 1 Pre-discovered Areas . | . . . . Known Exits Taken . | . . . . Unknown Exits Taken 3 | 1 1 1 . Scrap Searched 1 | . . 1 . Spaces Dug . | . . . . Terrain Destroyed 1 | . . . 1 Melee . | . . . . Projectile . | . . . . AOE 1 | . . . 1 Terrain Rammed . | . . . . Walls Destroyed . | . . . . Machines Disabled . | . . . . Actions | -11 -10 -10 -9 --------- Run | Yrd Mat Min Mat Total 1054 | 82 308 389 275 Wait 101 | 21 29 . 51 Move 804 | 48 236 351 169 Hop . | . . . . Pick Up 30 | 7 12 2 9 Fast Attach . | . . . . Attach 18 | 6 1 2 9 Detach . | . . . . Swap 9 | . 5 1 3 Drop 5 | . 5 . . Fire 36 | . 20 1 15 Melee 19 | . . . 19 Ram . | . . . . Kick . | . . . . Crush 32 | . . 32 . Escape Stasis . | . . . . Rewire . | . . . . Trap . | . . . . Miscellaneous . | . . . . Route ------- -11/Scrapyard -10/Materials (discovered 2 exits: *Mat / [*Min]) -10/Mines -9/Materials History --------- Turn | Location | Event 7 | -11/Scrapyard | Discovered new exit (range 15) 83 | -11/Scrapyard | Entered Materials 303 | -10/Materials | Build established: Mutant 416 | -10/Materials | Discovered new exit (range 16) 585 | -10/Materials | Discovered new exit (range 6) 597 | -10/Materials | Entered Mines 709 | -10/Mines | Found a damaged Exp. Sensor Array with a note attached 713 | -10/Mines | Found Prototype Device 981 | -10/Mines | Lost 3 parts (1p2w) 1054 | -10/Mines | Core integrity fell below 50% 1084 | -10/Mines | Core integrity fell below 20% 1201 | -10/Mines | Discovered new exit (range 11) 1219 | -10/Mines | Entered Materials 1219 | -9/Materials | Evolved 2 slots: Propulsion x2 1724 | -9/Materials | Core integrity fell below 50% 1747 | -9/Materials | Lost 7 parts (1p4n2w) 1775 | -9/Materials | Core integrity fell below 20% 1848 | -9/Materials | Self-destructed Last Messages --------------- 01777_ Sneak attack on M-13 Machinist. 01777_ Destroyed Recalibrator. 01777_ M-13 Machinist system corrupted by crushing effect. 01778_ M-13 Machinist system terminally corrupted. 01778_ Lgt. Ion Engine fried. 01778_ Machine Analyzer fried. 01778_ Wheel fried. 01802_ W-16 Scout sends out distress signal. 01816_ K-01 Serf cleans the Atomic Centrifuge. 01818_ G-34 Mercenary destroyed. 01819_ K-01 Serf collects debris. 01828_ K-01 Serf cleans the Atomic Centrifuge. 01828_ W-16 Scout sends out distress signal. 01830_ G-34 Mercenary destroyed. 01837_ Acquired Wheel. 01842_ K-01 Serf collects debris. 01843_ Acquired Corrupted Wheel. 01846_ K-01 Serf collects debris. Map ----- +----------------------------------------------------+ | ?????????????????????????????????????????????????? | | ?????????????????????????????????????????????????? | | ?????????????????????????????????????????????????? | | ?????????????????????????????????????????????????? | | ?????????????????????????????????????????????????? | | ?????????????????????????????????????????????????? | | ?????????????????????????????????????????????????? | | ?????????????????????????????????????????????????? | | ?????????????????????????????????????????????????? | | ?????????????????????????????????????????????????? | | ??????????????????????? ???###???????????????????? | | ?????????????????????# ??? +??????????????????? | | ?????????????????????# ?? #??????????????????? | | ???????????????????? # ?? ####+#?????????????? | | ???????????????????? # ?? +????????????? | | ??????????????? ? ??? ?? ##???????????? | | ???????????????? ?? ??????????? | | ????????????????? """k """ T ??????????? | | ???????????????? """% """ ?????????? | | ????????????????? """ """ ?????????? | | ??????????????????? ?????????? | | ????????????????????? == ?????????? | | ??????????????????????#%%* ss ????????????? | | ??????????????????????#t[ s ???????????????? | | ??????????????????????# %#??????????????????? | | ??????????????????????# @ * #??????????????????? | | ???????????????# + *%==%#??????????????????? | | ???????????????+ # ##+##+##?????????????????? | | ???????????????##?????# #!%% %#?????????????????? | | ??????????????????????# #=[ %#?????????????????? | | ?? ???????????????????# #%% #?????????????????? | | ?? ???????????######### # #?????????????????? | | ?? ? #???????+ + #?????????????????? | | ?? +???????###### #### #?????????????????? | | ??? ?????????????# #??########?????????????????? | | ??? ???#+#??????## ##??????????????????????????? | | ??? ???# ######## #??????????????????????????? | | ???# #???# % #??????????????????????????? | | #### #???# ######## #??????????????????????????? | | ####/###?# #??????#####??????????????????????????? | | #?# #?????????????????????????????????????? | | " % #?# #?########????????????????????????????? | | T ### ### !#????????????????????????????? | | " # # #????????????????????????????? | | """ # # #????????????????????????????? | | + + ! #????????????????????????????? | | [# # #????????????????????????????? | | !] # # #????????????????????????????? | | !] ### ############??????????????????????????? | | #?# #??????# #??????????????????????????? | +----------------------------------------------------+ Best States ------------- Heat Dissipation 35 Energy Generation 12 Energy Capacity 265 Matter Stores 300 Matter Capacity 300 Sight Range 16 Terrain Scan Density 10 Evasion (%) 55 Targeting Accuracy 5 Recoil Reduction 4 Item Schematics ----------------- None Robot Schematics ------------------ None Fabricated ------------ Nothing Alien Tech Used ----------------- None Achievements -------------- None Challenges ------------ None Game ------ Seed PlasmaRagnarokPerforator Manual? 0 Play Time 00:17:26 Cumulative 4.4 hours Start 2024.10.20 @ 06:31:22 End 2024.10.20 @ 06:47:58 Sessions 1 Manual Loads 0 Difficulty Rogue Special Mode None Game No. 6 Rogue 6 Adventurer 0 Explorer 0 Win Type - Total 0 Types 0/0/0/0/0/0/0/0/0 Lore% 4 Gallery% 9 Achievement% 10 Wizard Run 0 Options --------- Layout 1 ASCII 0 Keyboard 0 Movement Mouse Keybinds 0 Fullscreen 1 Font 24/Smallcaps Map View 50x35 Zoom Use 0% Tactical HUD 1 Map Filters NONE Filters NONE Steam 1 RUN: 381679ce-7a8e-4253-b5a4-7b395304bd7a